Cogmind - Beta 14 @@@ ROGUE MODE // 2024.09.29 @ 03:11:30 Player: Brimble Result: Destroyed by S-10 Pest with Light Assault Rifle Performance ------------- Evolutions (2) 1000 Regions Visited (5) 1000 Robots Destroyed (36) 180 Value Destroyed (1250) 1250 Prototype IDs (2) 40 Alien Tech Used (0) 0 Bonus (1200) 1200 TOTAL SCORE: 4670 Bonus ------- Entered Garrisons 200 Used RIF Installer 1000 Cogmind --------- Core Integrity 0/550 Matter 273/300 Energy 98/100 System Corruption 0% Temperature Cool (0) Movement Core (50) Location -8/Materials Parts ------- > --- POWER (1) -------- (None) > --- PROPULSION (3) --- (None) > --- UTILITY (5) ------ Seismic Detector > --- WEAPON (2) ------- (None) > --- INVENTORY (5) ---- Light Ion Engine Arc Projector Heavy Assault Rifle Advanced Assault Cannon Impact Mace Peak State ------------ > --- POWER ------------ Light Nuclear Core > --- PROPULSION ------- Carbon-fiber Leg Subdweller Monowheel > --- UTILITY ---------- Improved Heat Sink Small Storage Unit Sensor Array Seismic Detector Improved Light Armor Plating > --- WEAPON ----------- Spread Laser Improved Assault Rifle > --- INVENTORY -------- Light Ion Engine Heat Sink Light Armor Plating Medium Laser Subdweller Laser Assault Rifle Mining Laser [Rating: 22] Favorites ----------- Power Light Ion Engine Engine Light Ion Engine Power Core Light Nuclear Core Propulsion Aluminum Leg Treads Light Treads Leg Aluminum Leg Wheel Subdweller Monowheel Utility Small Storage Unit Device Sensor Array Storage Small Storage Unit Protection Light Armor Plating Weapon Medium Laser Energy Gun Medium Laser Energy Cannon Subdweller Beam Cannon Ballistic Gun Assault Rifle Launcher Grenade Launcher Special Weapon Mining Laser Impact Weapon Impact Mace Build | -11 -10 -10 -8 -8 -8 ------- Run | Yrd Mat Sub Mat Gar Mat Slots Evolved 4 | . . . 4 . . Power . | . . . . . . Propulsion 1 | . . . 1 . . Utility 3 | . . . 3 . . Weapon . | . . . . . . Parts Attached 68 | 7 7 23 19 9 3 Power 10 | 1 1 3 3 1 1 Engine 8 | 1 1 3 1 1 1 Core 2 | . . . 2 . . Reactor . | . . . . . . Propulsion 14 | 2 . 5 5 2 . Treads 1 | . . . . 1 . Leg 9 | 2 . 3 4 . . Wheel 4 | . . 2 1 1 . Hover . | . . . . . . Flight . | . . . . . . Utility 13 | 2 2 1 3 4 1 Device 9 | 1 2 1 2 2 1 Storage 1 | 1 . . . . . Processor . | . . . . . . Hackware . | . . . . . . Protection 3 | . . . 1 2 . Artifact . | . . . . . . Weapon 31 | 2 4 14 8 2 1 Energy Gun 6 | 1 1 2 1 1 . Energy Cannon 1 | . . 1 . . . Ballistic Gun 14 | 1 2 6 5 . . Ballistic Cannon . | . . . . . . Launcher 3 | . . 2 1 . . Special Weapon 6 | . 1 3 1 1 . Impact Weapon 1 | . . . . . 1 Slashing Weapon . | . . . . . . Piercing Weapon . | . . . . . . Special Melee Weapon . | . . . . . . Unidentified Prototypes 2 | . . . 1 . 1 Parts Lost 19 | . . 5 4 10 . Power 2 | . . 1 1 . . Propulsion 7 | . . 2 3 2 . Utility 5 | . . 1 . 4 . Weapon 5 | . . 1 . 4 . Highest Loss Streak 6 | . . 3 2 6 . To Critical Strikes 1 | . . . . 1 . Average Slot Usage (%) 91 | . 100 99 90 67 9 Engine 10 | . 14 13 4 3 . Core 1 | . . . 4 5 . Leg 23 | . 28 27 24 8 . Wheel 1 | . . . . 8 . Device 15 | . 14 13 23 8 9 Storage 11 | . 14 14 9 8 . Protection 2 | . . . 5 8 . Energy Gun 11 | . 14 14 9 4 . Ballistic Gun 8 | . 14 6 7 8 . Launcher 1 | . . 3 1 . . Special Weapon 2 | . . 3 . 3 . Peak Build Rating 22 | 9 9 11 21 22 7 Average Rating 10 | 7 7 8 17 15 1 On Entrance 7 | . 9 7 10 19 . Naked Turns 25 | . . . . 25 . Heaviest Build 24 | 13 15 19 24 21 1 Greatest Support 35 | 20 20 20 35 20 3 Greatest Overweight (x) 4 | . . . 1 4 . Average Overweight (x) . | . . . . . . Largest Inventory Capacity 8 | 8 8 8 8 8 5 Average Capacity 7 | 7 8 8 8 7 5 Most Carried 8 | 6 8 8 8 8 5 Average Carried 7 | 5 7 7 7 6 4 Final Capacity 8 | 8 8 8 8 5 5 Final Carried 8 | 6 8 8 8 5 5 Class Distribution -------------------- 70% | Mutant 29% | Scavenger-Mutant Dominant Class ---------------- Mutant | -10/Materials Mutant | -10/Subcaves Scavenger-Mutant | -8/Materials Mutant | -8/Garrison Mutant | -8/Materials Resources | -11 -10 -10 -8 -8 -8 ----------- Run | Yrd Mat Sub Mat Gar Mat Matter Collected 1365 | 363 85 316 469 132 . Remotely . | . . . . . . Salvage Created 1047 | 229 143 271 315 89 . Parts 63 | 22 4 16 14 7 . Haulers Intercepted 1 | . 1 . . . . Recyclers Shooed . | . . . . . . Parts Field Recycled . | . . . . . . Retrieved Matter . | . . . . . . Parts Self-Destructed 6 | . . 6 . . . Prevented . | . . . . . . Kills | -11 -10 -10 -8 -8 -8 ------- Run | Yrd Mat Sub Mat Gar Mat Combat Hostiles Destroyed 25 | . 2 10 9 4 . Guns 14 | . 1 5 5 3 . Cannons 1 | . . . . 1 . AOE 9 | . . 5 4 . . Classes Destroyed 9 | 3 2 1 2 1 . Worker 2 | 2 . . . . . Tunneler 7 | 7 . . . . . Hauler 1 | . 1 . . . . Recycler 1 | 1 . . . . . Swarmer 3 | . . . . 3 . Grunt 7 | . 2 . 5 . . Sentry 4 | . . . 3 1 . Hunter 1 | . . . 1 . . Subdweller 10 | . . 10 . . . Best Kill Streak 6 | 4 2 3 6 2 . Combat Bots Only 6 | . 2 3 6 2 . Max Kills in Single Turn 2 | 1 1 1 2 1 . Gunslinging . | . . . . . . Exploded 2 | . . 1 2 . . Melee . | . . . . . . Uniques/NPCs Destroyed . | . . . . . . Combat | -11 -10 -10 -8 -8 -8 -------- Run | Yrd Mat Sub Mat Gar Mat Hostile Shots Fired 286 | . 19 45 70 133 19 Missed 86 | . 11 17 19 32 7 Damage Taken 2560 | . 122 607 651 1074 106 Core 744 | . 16 174 147 301 106 Absorbed by Shields . | . . . . . . Core Remaining (%) 62 | 100 . 24 . . . Volleys Fired 163 | 31 16 62 34 20 . Largest 2 | 2 2 2 2 2 . Hottest 123 | 70 100 100 100 123 . Shots Fired 261 | 48 31 90 53 39 . Gun 190 | 48 30 37 41 34 . Cannon . | . . . . . . Launcher 26 | . . 20 6 . . Special 45 | . 1 33 6 5 . Kinetic 94 | 31 15 8 21 19 . Thermal 147 | 17 16 62 32 20 . Explosive 20 | . . 20 . . . Electromagnetic . | . . . . . . Robot Hit Streak 16 | 5 5 16 15 6 . Robot Miss Streak 4 | 3 4 2 3 3 . Penetration Max . | . . . . . . Secondary Targets 3 | . 1 . . 2 . Max Gunslinging Chain 1 | . 1 . . 1 . Shots Hit Robots 145 | 27 15 44 38 21 . Core Hits 74 | 11 6 21 30 5 1 Critical Kills 1 | . . . 1 . . Critical Parts Destroyed 1 | 1 . . . . . Critical Strikes 10 | 3 3 2 1 1 . Burn 8 | 2 3 2 . 1 . Destroy 2 | 1 . . 1 . . Melee Attacks . | . . . . . . Impact . | . . . . . . Slashing . | . . . . . . Piercing . | . . . . . . Sneak Attacks . | . . . . . . Combat Hostiles . | . . . . . . Follow-up Attacks . | . . . . . . Damage Inflicted 3199 | 334 197 1362 1000 299 7 Guns 1681 | 334 197 367 508 275 . Cannons . | . . . . . . Explosions 1414 | . . 971 443 . . Melee . | . . . . . . Ramming 8 | . . . 1 . 7 Kinetic 1177 | 222 69 99 588 199 . Thermal 1043 | 112 128 292 411 100 . Explosive 971 | . . 971 . . . Electromagnetic . | . . . . . . Impact . | . . . . . . Slashing . | . . . . . . Piercing . | . . . . . . Highest Corruption . | . . . . . . Average Corruption . | . . . . . . Corruption Purged . | . . . . . . Corruption Blocked . | . . . . . . Overload Shots . | . . . . . . Overflow Damage 23 | . . . 23 . . Projectiles . | . . . . . . Explosions 23 | . . . 23 . . Melee . | . . . . . . Knockbacks . | . . . . . . Impact . | . . . . . . Kinetic . | . . . . . . Secondary . | . . . . . . Self-Inflicted Damage 34 | . . 31 . . 3 Shots 1 | . . 1 . . . Rammed 1 | . . . . . 1 Targets Rammed 2 | . . . 1 . 1 Kicked 1 | . . . 1 . . Crushed . | . . . . . . Highest Temperature 153 | 45 153 . 85 21 . Average Temperature 34 | 17 52 . 36 7 . Received Heat Transfer 561 | . 72 93 198 189 9 Siege Activations . | . . . . . . Robots Corrupted . | . . . . . . Combat Hostiles . | . . . . . . Parts Fried . | . . . . . . Impact Corruptions . | . . . . . . Robots Melted 1 | . 1 . . . . Combat Hostiles 1 | . 1 . . . . Parts Melted 4 | 1 1 . . 2 . Heat Transferred 2954 | 481 592 975 560 346 . Parts Sabotaged . | . . . . . . Parts Stolen . | . . . . . . Parts Stripped . | . . . . . . Power Chain Reactions . | . . . . . . Alert | -11 -10 -10 -8 -8 -8 ------- Run | Yrd Mat Sub Mat Gar Mat Peak Influence 272 | 50 119 . 272 234 203 Initial 113 | . 32 . . 89 113 Average 105 | 25 95 . 137 127 132 Maximum Alert Level 1 | . . . 1 1 1 Low Security (%) 83 | 100 100 . 52 98 94 Level 1 16 | . . . 47 1 5 Level 2 . | . . . . . . Level 3 . | . . . . . . Level 4 . | . . . . . . Level 5 . | . . . . . . High Security . | . . . . . . Max Security . | . . . . . . Squads Dispatched 5 | . . . 2 . 3 Investigation . | . . . . . . Extermination . | . . . . . . Reinforcement 4 | . . . 1 . 3 Assault . | . . . . . . Garrison 1 | . . . 1 . . Intercept . | . . . . . . Searches Triggered . | . . . . . . Construction Impeded 2 | . . . 1 . 1 Haulers Reinforced . | . . . . . . Active Scanning Responses . | . . . . . . Cargo Convoy Interrupts . | . . . . . . Stealth | -11 -10 -10 -8 -8 -8 --------- Run | Yrd Mat Sub Mat Gar Mat Distress Signals 3 | . . . 2 . 1 Communications Jammed . | . . . . . . Distress Signals . | . . . . . . Times Spotted 58 | . 3 10 15 20 10 Peak Tracking Total 13 | . 2 3 5 13 10 Tactical Retreats 3 | . . . 1 1 1 Traps | -11 -10 -10 -8 -8 -8 ------- Run | Yrd Mat Sub Mat Gar Mat Traps Triggered 1 | . . . . 1 . Indirectly . | . . . . . . Trap Hack Attempts . | . . . . . . Triggered . | . . . . . . Disarmed . | . . . . . . Reprogrammed . | . . . . . . Reused . | . . . . . . Traps Extracted . | . . . . . . Installed . | . . . . . . Triggered . | . . . . . . Machines | -11 -10 -10 -8 -8 -8 ---------- Run | Yrd Mat Sub Mat Gar Mat Machines Disabled 2 | . . . 1 1 . Max in Single Turn 1 | . . . 1 1 . Garrison Relay 1 | . . . . 1 . Machines Repaired . | . . . . . . Machines Dismantled . | . . . . . . Machines Sabotaged . | . . . . . . Overloaded Fab Kills . | . . . . . . Hacking | -11 -10 -10 -8 -8 -8 --------- Run | Yrd Mat Sub Mat Gar Mat Machines Accessed 3 | . . . 3 . . Terminals 1 | . . . 1 . . Fabricators . | . . . . . . Repair Stations . | . . . . . . Recycling Units . | . . . . . . Scanalyzers 1 | . . . 1 . . Garrison Access 1 | . . . 1 . . Total Hacks 6 | . . . 6 . . Successful 5 | . . . 5 . . Failed 1 | . . . 1 . . Catastrophic . | . . . . . . Database Lockouts . | . . . . . . Manual . | . . . . . . Terminals 1 | . . . 1 . . Fabricators . | . . . . . . Repair Stations . | . . . . . . Recycling Units . | . . . . . . Scanalyzers 4 | . . . 4 . . Garrison Access 1 | . . . 1 . . Terminal Hacks 1 | . . . 1 . . Record 1 | . . . 1 . . Fabricator Hacks . | . . . . . . Repair Station Hacks . | . . . . . . Recycling Unit Hacks . | . . . . . . Scanalyzer 3 | . . . 3 . . Insert Component 2 | . . . 2 . . Analyze 1 | . . . 1 . . Garrison Access Hacks 1 | . . . 1 . . Unlock Access 1 | . . . 1 . . Unauthorized Hacks . | . . . . . . Terminals . | . . . . . . Fabricators . | . . . . . . Repair Stations . | . . . . . . Recycling Units . | . . . . . . Scanalyzers . | . . . . . . Garrison Access . | . . . . . . Data Cores Recovered . | . . . . . . Used . | . . . . . . Hacking Detections 2 | . . . 2 . . Full Trace Events 1 | . . . 1 . . Feedback Events . | . . . . . . Feedback Blocked . | . . . . . . Robot Schematics Acquired . | . . . . . . Robots Built . | . . . . . . Authchips . | . . . . . . Time . | . . . . . . Total Robot Build Rating . | . . . . . . Part Schematics Acquired 1 | . . . 1 . . Parts Built . | . . . . . . Authchips . | . . . . . . Time . | . . . . . . Total Part Build Rating . | . . . . . . Parts Repaired . | . . . . . . Time . | . . . . . . Parts Recycled . | . . . . . . Recycled Matter . | . . . . . . Retrieved Matter . | . . . . . . Retrieved Components . | . . . . . . Parts Scanalyzed 2 | . . . 2 . . Part Schematics Acquired 1 | . . . 1 . . Parts Damaged . | . . . . . . Bothacking | -11 -10 -10 -8 -8 -8 ------------ Run | Yrd Mat Sub Mat Gar Mat Used RIF Installer 2 | . . . . 2 . Command Fork 1 | . . . . 1 . Robots Hacked . | . . . . . . Non-combat . | . . . . . . Combat . | . . . . . . Robot Hacks Applied . | . . . . . . Relay Couplers Released 4 | . . . . 4 . Machine Destruction 4 | . . . . 4 . Fabnet Peak Effective % . | . . . . . . Robots Rewired . | . . . . . . Allies Hacked . | . . . . . . Hacks Repelled . | . . . . . . Allies | -11 -10 -10 -8 -8 -8 -------- Run | Yrd Mat Sub Mat Gar Mat Total Allies . | . . . . . . Largest Group . | . . . . . . Highest-Rated Group . | . . . . . . Highest-Rated Ally . | . . . . . . Total Orders . | . . . . . . Ally Attacks . | . . . . . . Total Damage . | . . . . . . Kills . | . . . . . . Allies Corrupted . | . . . . . . Allies Melted . | . . . . . . Intel | -11 -10 -10 -8 -8 -8 ------- Run | Yrd Mat Sub Mat Gar Mat Robot Analysis Total . | . . . . . . Derelict Logs Recovered 3 | . . 3 . . . Drone Launches . | . . . . . . Drone Recoveries . | . . . . . . Exploration | -11 -10 -10 -8 -8 -8 ------------- Run | Yrd Mat Sub Mat Gar Mat Turns Passed 2638 | 254 434 1082 518 278 72 Spaces Moved 1445 | 134 201 543 242 199 126 Core 187 | 7 . . . 54 126 Treads . | . . . . . . Legs 1098 | 127 201 528 242 . . Wheels 160 | . . 15 . 145 . Hover . | . . . . . . Flight . | . . . . . . Fastest Speed 50 | 50 120 110 120 50 50 Average Speed 110 | 116 120 119 124 96 50 Slowest Speed 250 | 120 120 120 190 250 50 Overloaded Moves . | . . . . . . Propulsion Burnouts . | . . . . . . Robots Hopped . | . . . . . . Cave-ins Triggered . | . . . . . . Exploration Rate (%) 22 | 5 21 43 21 33 14 Regions Visited 5 Branch Regions 1 Pre-discovered Areas 1 | . . 1 . . . Known Exits Taken 2 | . . 1 1 . . Unknown Exits Taken 2 | 1 1 . . . . Scrap Searched . | . . . . . . Spaces Dug 4 | . . . 4 . . Terrain Destroyed 157 | . . 87 70 . . Melee . | . . . . . . Projectile 5 | . . . 5 . . AOE 152 | . . 87 65 . . Terrain Rammed . | . . . . . . Walls Destroyed . | . . . . . . Machines Disabled . | . . . . . . Actions | -11 -10 -10 -8 -8 -8 --------- Run | Yrd Mat Sub Mat Gar Mat Total 2116 | 184 359 811 389 236 137 Wait 381 | . 126 173 82 . . Move 1439 | 133 200 542 241 197 126 Hop . | . . . . . . Pick Up 44 | 13 6 8 9 5 3 Fast Attach . | . . . . . . Attach 29 | 7 . 5 8 6 3 Detach 4 | . . . . 2 2 Swap 39 | . 7 18 11 3 . Drop 15 | . 4 3 3 3 2 Fire 163 | 31 16 62 34 20 . Melee . | . . . . . . Ram 1 | . . . . . 1 Kick 1 | . . . 1 . . Crush . | . . . . . . Escape Stasis . | . . . . . . Rewire . | . . . . . . Trap . | . . . . . . Miscellaneous . | . . . . . . Route ------- -11/Scrapyard -10/Materials -10/Subcaves -8/Materials -8/Garrison -8/Materials History --------- Turn | Location | Event 6 | -11/Scrapyard | Discovered new exit (range 16) 255 | -11/Scrapyard | Entered Materials 279 | -10/Materials | Discovered new exit (range 8) 313 | -10/Materials | Build established: Mutant 689 | -10/Materials | Entered Subcaves 796 | -10/Subcaves | Identified exit to Materials 1073 | -10/Subcaves | Learned location of Recycling (-7) 1134 | -10/Subcaves | Core integrity fell below 50% 1179 | -10/Subcaves | Lost 3 parts (1p1n1w) 1236 | -10/Subcaves | Shifting Twisted Machinery released Battle Rifle 1318 | -10/Subcaves | Learned Materials security intel 1661 | -10/Subcaves | Shifting Twisted Machinery released Sub. Monowheel 1666 | -10/Subcaves | Shifting Twisted Machinery released Sub. Shrapnel Launcher 1771 | -10/Subcaves | Entered Materials 1771 | -8/Materials | Evolved 4 slots: Propulsion x1, Utility x3 2207 | -8/Materials | Garrison activated, responded to threat 2287 | -8/Materials | Identified exit to Garrison 2289 | -8/Materials | Entered Garrison 2335 | -8/Garrison | Installed Relay Interface Framework 2371 | -8/Garrison | Triggered checkpoint 2479 | -8/Garrison | Garrison Relay disabled 2531 | -8/Garrison | Triggered checkpoint 2542 | -8/Garrison | Core integrity fell below 50% 2542 | -8/Garrison | Released all parts (3) 2556 | -8/Garrison | Discovered new exit (range 10) 2562 | -8/Garrison | Expanded RIF knowledge: Command Fork 2567 | -8/Garrison | Core integrity fell below 20% 2567 | -8/Garrison | Entered Materials 2570 | -8/Materials | Lost 6 parts (2n2u2w) 2639 | -8/Materials | Destroyed by S-10 Pest with Light Assault Rifle Last Messages --------------- LOCATION=UNKNOWN GOAL=ESCAPE 02574_ Dropped Lgt. Nuclear Core. 02575_ Acquired Adv. Assault Cannon. 02577_ Acquired Arc Projector. 02578_ Dropped Assault Rifle. 02579_ Acquired Prototype Impact Weapon. 02580_ Identified Impact Mace. 02588_ T-07 Excavator is excavating. 02593_ Slammed into U-05 Engineer. 02593_ ALERT: Construction progress impeded, dispatching reinforcements to local area. 02605_ O-16 Technician: "IFF HANDSHAKE FAILED. SECURING TERMINAL." 02623_ K-01 Serf collects debris. 02630_ ALERT: Hostiles spotted, dispatching reinforcements to Terminal M008. 02634_ ALERT: Hostiles spotted, dispatching reinforcements to Terminal M003. 02638_ S-10 Pest destroyed. Map ----- +----------------------------------------------------+ | ?????????????????????????????????????????????????? | | ?????????????????????????????????????????????????? | | ?????????????????????????????????????????????????? | | ?????????????????????????????????????????????????? | | ?????????????????????????????????????????????????? | | ?????????????????????????????????????????????????? | | ?????????????????????????????????????????????????? | | ?????????????????????????????????????????????????? | | ?????????????????????????????????????????????????? | | ?????????????????????????????????????????????????? | | ?????????????????????????????????????????????????? | | ?????????????????????????????????????????????????? | | ?????????????????????????????????????????????????? | | ?????????????????????????????????????????????????? | | ??????????????????????????????? ?????????????????? | | ???????????????????????????#### ###??????????????? | | ??????????????????????????? ????????????? | | ???????????????????????????# ??????????? | | ???????????????????????????# ??????????? | | ???????????################# #?????????? | | ???????# + !## +?????????? | | ???????????######### r= ## #?????????? | | ???????????????????#"""%* ## ? #?????????? | | ???????????????????#"""=s ## ?? ??????????? | | ???????????????????#""" s ## ####+####???????? | | ???????????????????# @## ##! ???????? | | ???????????????????######s## ## """ ""#??????? | | ????????????????????????+ ##= """ T"#??????? | | ????????????????????????# ## """ ""#??????? | | ????????????????????????# ## #??????? | | ????????????????????????# / """ #??????? | | ????????????????????????# ## """ #??????? | | ????????????????????????# ## """ #??????? | | ????????????????????????# ## #??????? | | ????????????????????????# ##### ## #######???????? | | ????????????????????????# ????# ####?????????????? | | ????????????????????????# #???# #????????????????? | | ????????????????????????# #???# #????????????????? | | ????????????????????????# #?###+####?????????????? | | ??????????????????????### ### #?+???????????? | | ??????????????????????# # """ +? ???????????? | | ??????????????????????# " # """ ## #########??? | | ??????????????????????# "T + """ ## ## ! / #??? | | ??????????????????????# # ## ## #??? | | ??????????????????????# # ## ## """ #??? | | ???????????????????######+########### ## """ #?? | | ???????????????????# #?????# ## """ #?? | | ???????????????????## """" #?????# #?? ??T | | ????????????????????# ""S"" ####### #####+####" | | ????????????????????# "" "" + + | +----------------------------------------------------+ Best States ------------- Heat Dissipation 45 Energy Generation 15 Energy Capacity 265 Matter Stores 300 Matter Capacity 300 Sight Range 16 Robot Scan Range 14 Terrain Scan Range 16 Terrain Scan Density 10 Armor Coverage 150 Evasion (%) 55 Item Schematics ----------------- Mining Laser | -8/Materials | Scanalyzed Robot Schematics ------------------ None Fabricated ------------ Nothing Alien Tech Used ----------------- None Achievements -------------- None Challenges ------------ None Game ------ Seed TechWaveDerivative Manual? 0 Play Time 00:54:04 Cumulative 17.1 hours Start 2024.09.29 @ 01:58:27 End 2024.09.29 @ 03:11:30 Sessions 1 Manual Loads 0 Difficulty Rogue Special Mode None Game No. 10 Rogue 10 Adventurer 0 Explorer 0 Win Type - Total 0 Types 0/0/0/0/0/0/0/0/0 Lore% 10 Gallery% 18 Achievement% 19 Wizard Run 0 Options --------- Layout 1 ASCII 0 Keyboard 0 Movement Numpad Keybinds 0 Fullscreen 1 Font 24/Smallcaps Map View 50x40 Zoom Use 0% Tactical HUD 1 Map Filters NONE Filters NONE Steam 1 RUN: 074d5ba5-345c-4353-8d1e-2067be375e08